bitfinex/quotes_ETHUSD_20220308
["timestamp","ask_amount","ask_price","bid_price","bid_amount"]
[1646732900274,0.13090476,2579.8,2579.7,5.99018721]
[1646732900708,0.13090476,2579.8,2579.7,2.49018721]
[1646732901810,0.13090476,2579.8,2579.7,1.58292197]
[1646732902011,0.13090476,2579.8,2579.6,0.19898419]
[1646732903013,0.13090476,2579.8,2579.6,0.19898427]
[1646732903215,0.13090476,2579.8,2579.6,0.00518427]
[1646732903814,0.13090476,2579.8,2579.5,1.00456358]
[1646732904158,0.13090476,2579.8,2579.6,0.00518425]
[1646732904965,0.13090476,2579.8,2579.5,0.00620847]
[1646732905364,0.13090476,2579.8,2579.6,0.00518425]
[1646732906364,0.13090476,2579.8,2579.5,0.00620847]
[1646732906566,0.13090476,2579.8,2579.6,1.58820513]
[1646732906765,0.13090476,2579.8,2579.6,0.00518425]
[1646732907469,0.13090476,2579.8,2579.5,3.50620847]
[1646732907672,0.13090476,2579.8,2579.6,1.5881713]
[1646732907922,0.13090476,2579.8,2579.6,0.00518425]
[1646732908117,0.13090476,2579.8,2579.6,0.97462425]
[1646732909220,0.13090476,2579.8,2579.6,0.00518425]
[1646732910022,0.13090476,2579.8,2579.5,0.01896847]
[1646732910224,0.13090476,2579.8,2579.6,0.00518425]
[1646732911121,0.13090476,2579.8,2579.5,0.01896847]
[1646732911323,0.13090476,2579.8,2579.6,0.00518425]
[1646732912168,0.13090476,2579.8,2579.5,0.01896847]
[1646732912575,0.13090476,2579.8,2579.6,0.00518425]
[1646732913173,1.10078476,2579.8,2579.6,0.00518425]
[1646732913370,4.60078476,2579.8,2579.6,0.00518425]
[1646732913573,1.10078476,2579.8,2579.5,0.01896847]
[1646732913770,1.10078476,2579.8,2579.6,0.00518425]
[1646732914170,4.60078476,2579.8,2579.6,0.00518425]
[1646732914370,1.10078476,2579.8,2579.6,0.00518425]
[1646732914771,1.10078476,2579.8,2579.5,0.01896847]
[1646732914973,1.10078476,2579.8,2579.6,0.00528146]
[1646732915174,4.60078476,2579.8,2579.6,0.00528146]
[1646732915426,3.5,2579.7,2579.6,0.00528146]
[1646732915640,1.10078476,2579.8,2579.6,0.00528146]
[1646732915812,1.10078476,2579.8,2579.5,0.01896847]
[1646732916013,3.5,2579.7,2579.5,0.01896847]
[1646732916214,3.5,2579.7,2579.5,0.02425001]
[1646732916215,3.69556751,2579.7,2579.5,0.02425001]
[1646732916415,5.30476751,2579.7,2579.5,0.02425001]
[1646732917018,6.27468171,2579.7,2579.5,0.01896847]
[1646732917218,2.77468171,2579.7,2579.5,0.01896847]
[1646732917419,1.80476751,2579.7,2579.5,0.02425009]
[1646732917618,1.6092,2579.7,2579.5,0.02425009]
[1646732917819,1.1432,2579.7,2579.5,0.02425009]
[1646732918218,1.1432,2579.7,2579.5,0.01896847]
[1646732918818,1.1432,2579.7,2579.5,0.02432458]
[1646732919018,0.13090476,2579.8,2579.5,0.02432458]
[1646732919461,0.13090476,2579.8,2579.5,0.01896847]
[1646732919863,0.13090476,2579.8,2579.5,0.0243245]
[1646732920765,0.13090476,2579.8,2579.5,0.01896847]
[1646732920966,0.13090476,2579.8,2579.5,0.0243245]
[1646732921967,0.13090476,2579.8,2579.5,0.65296847]
[1646732922165,0.13090476,2579.8,2579.5,0.65847846]
[1646732923119,0.13090476,2579.8,2579.5,0.65296847]
[1646732923317,0.13090476,2579.8,2579.6,0.634]
[1646732924319,0.13090476,2579.8,2579.5,0.01896847]
[1646732924518,1.11140275,2579.9,2579.6,0.00528413]
[1646732925520,1.11140275,2579.9,2579.6,0.634]
[1646732925722,1.11140275,2579.9,2579.6,0.63929971]
[1646732925920,1.11140275,2579.9,2579.6,0.00529971]
[1646732926320,1.11140275,2579.9,2579.5,0.01372599]
[1646732928069,1.11140275,2579.9,2579.6,0.634]
[1646732928671,1.1751,2580.1,2579.5,0.01372599]
[1646732928872,1.1751,2580.1,2579.6,0.634]
[1646732929673,1.01531231,2580.0,2579.6,0.634]
[1646732930718,1.01531231,2580.0,2579.6,1.79821103]
[1646732932122,1.1751,2580.1,2579.6,1.79821103]
[1646732933122,1.1751,2580.1,2579.6,0.634]
[1646732934025,1.1751,2580.1,2579.6,0.629749]
[1646732934265,1.22351466,2580.0,2579.6,0.629749]
[1646732936065,0.96968,2579.9,2579.6,0.629749]
[1646732937668,1.22351466,2580.0,2579.6,0.629749]
[1646732938515,1.1751,2580.1,2579.6,0.629749]
[1646732938717,1.1751,2580.1,2579.8,0.629749]
[1646732938918,1.1751,2580.1,2579.9,0.629749]
[1646732939115,1.42103263,2580.5,2579.9,0.629749]
[1646732939317,0.00366466,2580.5,2580.1,0.629749]
[1646732939516,0.00366466,2580.5,2580.3,0.629749]
[1646732939917,5.13791038,2580.7,2580.2,0.629749]
[1646732940115,5.13791038,2580.7,2580.2,0.623475]
[1646732940318,0.00366537,2580.5,2580.2,0.623475]
[1646732940518,0.00366537,2580.5,2580.3,3.5]
[1646732940718,0.00366537,2580.5,2580.4,0.623475]
[1646732940922,0.00366537,2580.5,2580.4,5.70604864]
[1646732941422,2.60066797,2581.4,2580.6,0.623475]
[1646732941423,1.41736797,2581.4,2580.6,0.623475]
[1646732941679,1.41736797,2581.8,2581.0,3.617103]
[1646732941922,4.5,2582.1,2581.4,0.623475]
[1646732942069,1.88547474,2582.4,2581.6,0.623475]
[1646732942070,0.3877,2582.0,2581.6,0.623475]
[1646732942268,0.3877,2582.0,2581.5,2.993628]
[1646732942269,0.3877,2582.0,2581.7,0.623475]
[1646732942675,0.87275892,2581.9,2581.7,0.623475]
[1646732943273,0.87275892,2581.9,2581.2,0.623475]
[1646732943675,1.88547474,2582.2,2581.2,0.623475]
[1646732943676,3.241e-05,2582.1,2581.2,0.623475]
[1646732943874,1.09906255,2581.6,2581.2,0.623475]
[1646732944275,1.09906255,2581.6,2580.9,0.623475]
[1646732945175,0.96895,2582.0,2581.0,0.623475]
[1646732945816,1.16451751,2582.0,2581.0,0.623475]
[1646732946216,1.02199615,2581.7,2580.8,0.623475]
[1646732946416,0.00430881,2581.6,2580.8,0.623475]
[1646732947222,0.19556751,2581.6,2580.8,0.623475]
[1646732947424,0.9154397,2581.0,2580.8,0.623475]
[1646732948723,0.91974851,2581.0,2580.8,0.623475]
[1646732949166,0.00430881,2581.0,2580.8,0.623475]
[1646732949764,1.2229,2581.7,2580.8,0.623475]
[1646732949964,0.00430881,2581.0,2580.8,0.623475]
[1646732950165,0.00430881,2581.0,2580.9,1.50804337]
[1646732950765,1.04480633,2581.6,2580.9,1.50804337]
[1646732951170,0.00430881,2581.1,2580.9,1.50804337]
[1646732951967,1.04480633,2581.6,2580.9,1.50804337]
[1646732952368,0.00430881,2581.1,2580.9,1.50804337]
[1646732953219,3.241e-05,2582.1,2580.9,1.50804337]
[1646732953420,0.00430881,2581.1,2580.9,1.50804337]
[1646732954423,3.241e-05,2582.1,2580.9,1.50804337]
[1646732954620,0.00120341,2581.1,2580.9,1.50804337]
[1646732955317,0.00120341,2581.1,2581.0,0.623475]
[1646732955518,1.05145765,2581.4,2581.0,0.623475]
[1646732955919,0.00120341,2581.1,2581.0,0.623475]
[1646732956864,3.241e-05,2582.1,2581.0,0.623475]
[1646732957069,0.00400342,2581.2,2581.0,0.623475]
[1646732957565,0.00400342,2581.2,2581.1,0.623475]
[1646732957968,1.18620426,2581.5,2581.1,0.623475]
[1646732958370,0.00430881,2581.3,2581.1,0.623475]
[1646732959271,3.241e-05,2582.1,2581.1,0.623475]
[1646732959470,3.241e-05,2582.1,2581.3,1.68298545]
[1646732960618,3.241e-05,2582.1,2581.3,0.623475]
[1646732960822,0.00430881,2581.8,2581.3,0.623475]
[1646732961017,0.00430881,2581.8,2581.5,0.623475]
[1646732961618,3.241e-05,2582.1,2581.7,0.623475]
[1646732961818,3.241e-05,2582.1,2581.9,0.623475]
[1646732962018,3.241e-05,2582.1,2582.0,0.623475]
[1646732962418,0.02699366,2582.1,2582.0,0.623475]
[1646732964969,0.02699366,2582.1,2581.6,0.623475]
[1646732965769,1.16166267,2582.0,2581.6,0.623475]
[1646732966272,0.02696125,2581.9,2581.6,0.623475]
[1646732966675,0.03127006,2581.9,2581.6,0.623475]
[1646732967573,0.02696125,2581.9,2581.6,1.012375]
[1646732968016,0.03127006,2581.9,2581.6,1.980985]
[1646732968220,0.03127006,2581.9,2581.6,1.592085]
[1646732968416,3.241e-05,2582.1,2581.9,0.06011971]
[1646732968817,3.241e-05,2582.1,2581.9,0.68359471]
[1646732969717,3.241e-05,2582.1,2581.9,0.06011971]
[1646732970320,1.21536317,2582.0,2581.9,0.06011971]
[1646732970922,3.241e-05,2582.1,2581.9,0.06011971]
[1646732972768,0.00433045,2582.1,2581.9,0.06011971]
[1646732973372,0.00433045,2582.1,2582.0,0.623475]
[1646732973772,3.241e-05,2582.1,2582.0,0.623475]
[1646732973971,0.00433045,2582.1,2582.0,0.623475]
[1646732974972,3.241e-05,2582.1,2582.0,0.623475]
[1646732980470,3.241e-05,2582.1,2582.0,15.487103]
[1646732980867,3.241e-05,2582.1,2582.0,4.58510523]
[1646732981167,3.241e-05,2582.1,2582.0,0.623475]
[1646732982570,3.241e-05,2582.1,2582.0,12.493475]
[1646732982769,3.241e-05,2582.1,2582.0,12.882375]
[1646732983022,0.00013045,2582.2,2582.0,14.46373137]
[1646732983220,0.00013045,2582.2,2582.1,18.391593]
[1646732983420,0.00211906,2582.9,2582.1,20.43894937]
[1646732983619,0.00211906,2582.9,2582.3,12.493475]
[1646732983822,0.00211906,2582.9,2582.5,15.487103]
[1646732984019,0.00211906,2582.9,2582.7,12.493475]
[1646732984219,0.00211906,2582.9,2582.7,14.429615]
[1646732984418,0.00211906,2582.9,2582.8,0.623475]
[1646732984823,0.00340817,2582.9,2582.8,1.7657116]
[1646732985021,0.00340817,2582.9,2582.8,0.623475]
[1646732985723,0.00211906,2582.9,2582.8,0.623475]
[1646732988167,0.92862307,2582.9,2582.8,0.623475]
[1646732988869,0.92862307,2582.9,2582.1,2.87583688]
[1646732989070,7.0,2582.8,2582.3,1.14084211]
[1646732989270,0.96868,2582.7,2582.3,1.14084211]
[1646732989470,3.5,2582.6,2582.3,1.14084211]
[1646732989671,3.50399942,2582.6,2582.3,1.14084211]
[1646732989870,1.18212609,2582.5,2582.3,1.14084211]
[1646732990072,1.18212609,2582.5,2581.9,1.20096182]
[1646732990518,1.18212609,2582.5,2582.1,1.14084211]
[1646732990925,0.96849,2582.6,2582.1,1.14084211]
[1646732992022,1.91437404,2582.6,2582.1,1.14084211]
[1646732992824,0.96849,2582.6,2582.1,1.14084211]
[1646732993123,1.93701,2582.8,2582.3,1.14084211]
[1646732994565,1.94135345,2582.7,2582.3,1.14084211]
[1646732995265,1.93706,2582.7,2582.3,1.14084211]
[1646732995670,1.93706,2582.7,2582.3,0.31738451]
[1646732995671,3.50429345,2582.6,2582.3,0.31738451]
[1646732995870,0.00429345,2582.6,2582.3,0.31738451]
[1646732996470,1.06132302,2582.5,2581.9,0.06011971]
[1646732996671,0.96881,2582.4,2581.9,0.06011971]
[1646732997271,1.18500498,2582.4,2581.9,0.06011971]
[1646732997671,2.15392578,2582.4,2581.9,0.06011971]
[1646732997924,3.5,2582.3,2581.9,0.06011971]
[1646732998119,0.96901476,2582.0,2581.9,0.06011971]
[1646732998519,0.96872,2582.2,2581.9,0.06011971]
[1646732999924,0.96872,2582.2,2582.0,0.72478294]
[1646733000224,0.96872,2582.2,2582.1,0.72478294]
[1646733001230,0.96872,2582.2,2581.9,0.06011971]
[1646733001427,0.96872,2582.2,2581.9,0.05374341]
[1646733002063,0.96872,2582.2,2581.9,0.77852635]
[1646733004070,3.5,2582.1,2581.9,0.77852635]
[1646733004270,0.96872,2582.2,2581.9,0.77852635]
[1646733004670,5.4376549,2582.2,2581.9,0.77852635]
[1646733005072,1.9376549,2582.2,2581.9,0.77852635]
[1646733005273,5.4376549,2582.2,2581.9,0.77852635]
[1646733005522,1.9376549,2582.2,2581.9,0.77852635]
[1646733005922,0.96872,2582.2,2581.9,0.77852635]
[1646733006528,0.0042932,2582.3,2582.1,0.72478294]
[1646733006723,0.0042932,2582.3,2582.2,0.72478294]
[1646733007123,0.13662223,2582.3,2582.2,0.72478294]
[1646733007325,0.13232903,2582.3,2582.2,0.72478294]
[1646733011970,0.13232903,2582.3,2581.9,0.77852635]
[1646733013519,0.13661638,2582.3,2581.9,0.77852635]
[1646733014520,0.13232903,2582.3,2581.9,0.77852635]
[1646733014721,0.13661638,2582.3,2581.9,0.77852635]
[1646733015323,0.13661638,2582.3,2582.0,0.72478294]
[1646733015722,0.13232903,2582.3,2582.0,0.72478294]
[1646733016223,0.13661647,2582.3,2582.0,0.72478294]
[1646733016664,0.00428744,2582.3,2582.0,0.72478294]
[1646733016865,0.00428744,2582.3,2582.0,1.85792356]
[1646733017066,1.10096903,2582.7,2582.2,0.72478294]
[1646733017263,0.00429337,2582.3,2582.2,0.72478294]
[1646733018066,1.10096903,2582.7,2582.2,0.72478294]
[1646733018469,0.00429345,2582.4,2582.2,0.72478294]
[1646733019270,1.10096903,2582.7,2582.2,0.72478294]
[1646733019671,0.00429345,2582.4,2582.2,0.72478294]
[1646733020072,0.97299345,2582.4,2582.2,0.72478294]
[1646733020613,0.13232903,2582.3,2582.2,0.72478294]
[1646733021818,1.13510492,2582.3,2582.2,0.72478294]
[1646733022021,0.13232903,2582.3,2582.2,0.72478294]
[1646733024987,0.13232903,2582.3,2582.2,0.72380198]
[1646733028624,3.63232903,2582.3,2582.2,0.72380198]
[1646733028826,0.13232903,2582.3,2582.2,0.72380198]
[1646733031226,0.13232903,2582.3,2582.2,0.72167998]
[1646733031872,0.13232903,2582.3,2582.2,0.71955536]
[1646733032376,0.95671868,2582.1,2581.9,0.05374341]
[1646733032972,0.13232903,2582.0,2581.6,0.54358721]
[1646733033173,0.13232903,2582.0,2581.8,0.54358721]
[1646733033374,0.13232903,2582.0,2581.9,2.12537071]
[1646733033774,3.03901903,2582.0,2581.9,2.12537071]
[1646733034375,3.03901903,2582.0,2581.9,3.26765912]
[1646733034776,1.35195588,2582.0,2581.9,3.26765912]
[1646733035277,0.13232903,2582.0,2581.9,3.26765912]
[1646733035520,0.13232903,2582.0,2581.9,3.65655912]
[1646733035921,0.13232903,2582.0,2581.9,6.76765912]
[1646733036122,0.96889,2582.2,2581.9,6.76765912]
[1646733036123,0.13232903,2582.1,2581.9,6.76765912]
[1646733036323,0.13232903,2582.1,2582.0,2.12537071]
[1646733036923,0.13232903,2582.1,2582.0,5.62537071]
[1646733037124,0.13232903,2582.1,2582.0,6.01427071]
[1646733037326,0.13232903,2582.1,2582.0,2.12537071]
[1646733044030,0.13232903,2582.1,2582.0,5.62537071]
[1646733044432,0.13232903,2582.1,2582.0,2.12537071]
[1646733048380,0.13232903,2582.1,2582.0,6.59384071]
[1646733050824,0.13232903,2582.1,2582.0,5.62537071]
[1646733051423,0.13232903,2582.1,2582.0,2.12537071]
[1646733051622,0.13232903,2582.1,2582.0,5.62537071]
[1646733052326,0.13232903,2582.1,2582.0,6.59384071]
[1646733053828,0.13232903,2582.1,2582.0,3.09384071]
[1646733054271,0.13232903,2582.1,2582.0,6.59384071]
[1646733054670,0.13232903,2582.1,2582.0,3.09384071]
[1646733054871,1.35230167,2582.3,2582.2,0.54358721]
[1646733055172,1.35230167,2582.3,2582.2,2.12537071]
[1646733055372,1.93677,2582.7,2582.4,0.54358721]
[1646733055574,0.00211906,2582.9,2582.6,0.54358721]
[1646733055774,0.00211906,2582.9,2582.8,0.54358721]
[1646733055977,0.00211906,2582.9,2582.8,2.12537071]
[1646733056175,0.00211906,2582.9,2582.8,3.04422602]
[1646733056575,0.00211906,2582.9,2582.8,3.04363666]
[1646733056777,0.00211906,2582.9,2582.8,1.46244252]
[1646733056978,0.00211906,2582.9,2582.8,0.54358721]
[1646733061037,0.96843,2582.8,2582.4,0.54358721]
[1646733062074,0.96843,2582.8,2582.5,0.54358721]
[1646733062275,0.00391232,2582.7,2582.5,0.54358721]
[1646733062976,0.00391232,2582.7,2582.4,0.54358721]
[1646733063177,1.94070232,2582.7,2582.4,0.54358721]
[1646733063376,1.94461464,2582.7,2582.4,0.54358721]
[1646733063580,1.94070232,2582.7,2582.4,0.54358721]
[1646733063979,1.94070232,2582.7,2581.9,0.54358721]
[1646733064178,1.14147664,2582.6,2582.1,0.54358721]
[1646733064378,1.94070232,2582.7,2582.2,1.58142579]
[1646733064578,1.94070232,2582.7,2582.3,0.54358721]
[1646733064780,1.9443099,2582.7,2582.5,0.54358721]
[1646733064979,1.94039758,2582.7,2582.1,0.54358721]
[1646733065177,1.94039758,2582.7,2582.3,0.54358721]
[1646733065433,1.94039758,2582.7,2582.6,1.71826205]
[1646733065823,1.94039758,2582.7,2582.6,3.29951105]
[1646733066226,1.93679,2582.7,2582.6,3.29951105]
[1646733066424,1.93679,2582.7,2582.6,1.169]
[1646733066625,1.93679,2582.7,2581.8,2.4855]
[1646733066626,5.43679,2582.7,2581.8,2.4855]
[1646733066826,0.01289757,2582.4,2581.1,6.24057055]
[1646733067028,0.96876,2582.2,2581.1,1.1435]
[1646733067225,0.96876,2582.2,2581.0,2.8195]
[1646733067427,5.43768,2582.2,2581.4,0.87352672]
[1646733067627,2.5,2582.1,2581.3,0.91322121]
[1646733067829,5.63486,2582.2,2581.3,0.91322121]
[1646733068029,0.96879,2581.8,2581.1,1.14847466]
[1646733068430,0.96879,2581.8,2581.2,11.87]
[1646733068629,0.96879,2581.8,2581.2,12.2589]
[1646733068832,0.96879,2581.8,2581.2,13.2589]
[1646733069280,0.96879,2581.8,2581.7,0.89653212]
[1646733069879,0.96879,2581.8,2581.4,1.43694]
[1646733070083,0.96879,2581.8,2581.5,1.1638125]
[1646733070484,0.96879,2581.8,2581.4,7.56784813]
[1646733071083,0.96879,2581.8,2581.5,0.96846]
[1646733071284,0.96879,2581.8,2581.2,0.43396955]
[1646733071492,0.96879,2581.8,2581.1,0.43791562]
[1646733071684,0.96879,2581.8,2581.1,0.43396955]
[1646733072485,1.09775377,2581.4,2581.1,0.43396955]
[1646733072685,2.06658377,2581.4,2581.1,0.43900942]
[1646733074131,2.07033982,2581.4,2581.1,0.44404912]
[1646733074327,2.07033982,2581.4,2581.1,0.43900925]
[1646733074728,0.97258605,2581.4,2581.1,0.43900925]
[1646733074933,2.90649,2581.6,2581.4,0.43396955]
[1646733074934,2.19198963,2581.6,2581.4,0.43396955]
[1646733075133,1.93756,2582.7,2581.4,0.43396955]
[1646733075134,3.5,2582.4,2581.4,0.43396955]
[1646733075331,3.5,2582.7,2581.4,0.43396955]
[1646733075531,0.96875,2581.8,2581.4,0.43396955]
[1646733075831,0.96875,2581.8,2581.5,0.43396955]
[1646733076973,0.96875,2581.8,2581.6,0.43396955]
[1646733077878,0.96875,2581.8,2581.7,0.43396955]
[1646733078882,0.96875,2581.8,2581.6,0.43396955]
[1646733079882,0.97312586,2581.8,2581.6,0.43396955]
[1646733080728,0.96875,2581.8,2581.6,0.43396955]
[1646733080931,0.97312586,2581.8,2581.6,0.43396955]
[1646733081932,0.96875,2581.8,2581.6,0.43396955]
[1646733082132,0.97312586,2581.8,2581.6,0.43396955]
[1646733083138,0.96875,2581.8,2581.6,0.43396955]
[1646733083337,0.97312017,2581.8,2581.6,0.43396955]
[1646733084276,0.96875,2581.8,2581.6,0.43396955]
[1646733084676,0.97312017,2581.8,2581.6,0.43396955]
[1646733085479,0.96875,2581.8,2581.6,0.43396955]
[1646733085878,0.97312017,2581.8,2581.6,0.43396955]
[1646733086679,0.96875,2581.8,2581.6,0.43396955]
[1646733087183,0.97312017,2581.8,2581.6,0.43396955]
[1646733088026,0.96875,2581.8,2581.6,0.43396955]
[1646733088228,0.97312017,2581.8,2581.6,0.43396955]
[1646733089128,0.96875,2581.8,2581.6,0.43396955]
[1646733090331,3.5,2581.7,2581.6,1.1]
[1646733091330,3.5,2581.7,2581.1,0.00518793]
[1646733091530,3.5,2581.7,2580.8,1.25512]
[1646733091531,3.35304685,2581.6,2580.8,1.25512]
[1646733091774,3.3691452,2581.6,2581.0,1.1]
[1646733091975,3.3691452,2581.6,2581.1,0.87877211]
[1646733092179,3.09629087,2581.6,2581.2,1.1]
[1646733092385,3.09629087,2581.6,2581.4,1.1]
[1646733092582,3.09629087,2581.6,2581.5,1.1]
[1646733092981,3.10065536,2581.6,2581.5,1.1]
[1646733093182,3.3099365,2581.6,2581.5,1.1]
[1646733093586,3.10065536,2581.6,2581.5,1.1]
[1646733094083,3.09629087,2581.6,2581.5,1.1]
[1646733094685,2.5,2581.5,2581.1,0.00518225]
[1646733094887,4.43801,2581.5,2581.1,0.00518225]
[1646733095083,1.93801,2581.5,2581.1,0.00518225]
[1646733095284,1.93801,2581.5,2580.8,2.23771]
[1646733095528,1.94237432,2581.5,2581.1,0.00518212]
[1646733097630,1.93801,2581.5,2580.8,2.23771]
[1646733097831,1.94237432,2581.5,2581.1,0.00518251]
[1646733098631,1.03584943,2581.2,2581.1,0.00518251]
[1646733098831,1.93801,2581.4,2581.2,0.65130743]
[1646733099030,2.86773776,2581.4,2581.2,0.65130743]
[1646733101579,1.93801,2581.4,2581.2,0.65130743]
[1646733107476,1.93801,2581.4,2581.1,0.00495356]
[1646733107477,5.93801,2581.4,2581.1,0.00495356]
[1646733107680,1.93801,2581.4,2581.1,0.00495356]
[1646733108080,1.93801,2581.4,2580.6,1.93809]
[1646733108081,1.06351164,2580.8,2580.6,2.23809]
[1646733108280,1.06351164,2580.8,2580.7,1.78182011]
[1646733109982,4.56351164,2580.8,2580.1,0.2]
[1646733110186,4.56351164,2580.8,2579.8,5.87373385]
[1646733110187,1.93874,2580.7,2580.2,1.78208179]
[1646733110455,1.93874,2580.7,2580.4,0.2]
[1646733111045,1.93874,2580.7,2580.1,0.2]
[1646733111244,2.9081681,2580.7,2580.3,0.2]
[1646733112045,2.9081681,2580.7,2580.1,0.2]
[1646733112244,2.9081681,2580.7,2580.4,0.00552425]
[1646733112245,1.93874,2580.7,2580.4,0.00552425]
[1646733113246,1.93874,2580.7,2580.1,0.2]
[1646733113447,1.93874,2580.7,2580.4,0.00552417]
[1646733114272,2.9081755,2580.7,2580.4,0.00552417]
[1646733114474,2.9081755,2580.7,2579.8,1.5581]
[1646733114475,1.93874,2580.7,2579.8,1.5581]
[1646733114675,1.93874,2580.7,2580.0,0.2]
[1646733114875,1.93874,2580.7,2580.6,0.2]
[1646733115075,1.93874,2580.7,2580.6,1.78213661]
[1646733115278,1.93874,2580.7,2580.6,0.2]
[1646733115580,1.2196,2580.9,2580.6,1.78213661]
[1646733115776,1.93796,2581.1,2580.6,0.2]
[1646733115976,1.93796,2581.1,2580.6,3.7]
[1646733116278,0.96919,2580.9,2580.8,0.2]
[1646733116478,0.96919,2580.9,2580.7,0.2]
[1646733117076,0.96919,2580.9,2580.7,0.20551966]
[1646733118132,0.96919,2580.9,2580.7,0.2]
[1646733118429,0.96919,2580.9,2580.7,0.20551974]
[1646733119331,0.96919,2580.9,2580.7,0.2]
[1646733119530,0.96919,2580.9,2580.7,0.20551974]
[1646733119729,0.96919,2580.9,2580.7,3.70551974]
[1646733119930,1.93796,2581.1,2581.0,0.2]
[1646733120931,1.93796,2581.1,2581.0,1.78182515]
[1646733121976,1.93796,2581.1,2581.0,0.2]
[1646733123583,1.93796,2581.1,2581.0,0.23346232]
[1646733124184,1.93796,2581.1,2581.0,1.81544439]
[1646733124387,0.96888,2581.2,2581.0,5.31544439]
[1646733124590,5.80386,2581.6,2581.0,5.31544439]
[1646733124591,0.13819997,2582.1,2581.2,5.7]
[1646733124785,5.52718865,2582.9,2581.4,0.2]
[1646733124786,5.36244469,2582.9,2581.4,0.2]
[1646733124988,0.00211906,2582.9,2582.4,0.2]
[1646733125627,0.00211906,2582.9,2582.5,0.2]
[1646733125827,0.00211906,2582.9,2582.5,3.7]
[1646733126032,0.00211906,2582.9,2582.5,15.9589]
[1646733126228,0.00211906,2582.9,2582.5,16.9589]
[1646733126428,0.00211906,2582.9,2582.5,5.0889]
[1646733126627,0.00211906,2582.9,2582.5,1.5889]
[1646733126828,0.00211906,2582.9,2582.5,0.5889]
[1646733126829,0.00122915,2582.8,2582.5,0.5889]
[1646733127028,0.96968915,2582.8,2582.5,0.5889]
[1646733127230,0.96968915,2582.8,2582.7,0.2]
[1646733127427,0.96968915,2582.8,2582.7,4.0889]
[1646733127627,0.96846,2582.8,2582.7,0.5889]
[1646733127828,0.96846,2582.8,2582.7,4.0889]
[1646733128032,0.96846,2582.8,2582.7,15.9589]
[1646733128230,0.96846,2582.8,2582.7,0.5889]
[1646733128532,0.96846,2582.8,2582.7,0.2]
[1646733128929,0.96846,2582.8,2582.7,0.21934971]
[1646733130383,0.00610217,2582.9,2582.7,3.71934971]
[1646733130582,0.00610217,2582.9,2582.8,1.16799]
[1646733130783,0.00610217,2582.9,2582.8,4.66799]
[1646733131186,0.00610217,2582.9,2582.8,5.66799]
[1646733131387,0.00211906,2582.9,2582.8,4.66799]
[1646733131585,0.00211906,2582.9,2582.8,5.72014297]
[1646733132486,0.00211906,2582.9,2582.8,2.22014297]
[1646733132686,0.00211906,2582.9,2582.8,1.25215297]
[1646733133330,0.00211906,2582.9,2582.8,0.2]
[1646733133935,0.00211906,2582.9,2582.8,1.169]
[1646733139684,0.00211906,2582.9,2582.8,1.20322641]
[1646733140185,0.00211906,2582.9,2582.8,0.90315308]
[1646733141838,0.00211906,2582.9,2582.8,1.83124313]
[1646733142038,0.00211906,2582.9,2582.8,5.33124313]
[1646733142239,2.90441,2583.0,2582.9,0.90716392]
[1646733142437,0.96816,2583.1,2583.0,6.40315308]
[1646733142438,0.00434987,2583.1,2583.0,6.40315308]
[1646733142846,0.00434987,2583.1,2583.0,10.90315308]
[1646733143042,0.00434987,2583.1,2583.0,5.40315308]
[1646733143239,0.00434987,2583.1,2583.0,1.90315308]
[1646733143640,0.00434987,2583.1,2583.0,0.90315308]
[1646733143841,0.00434987,2583.1,2582.9,0.90716392]
[1646733145485,0.00434987,2583.1,2583.0,4.40315308]
[1646733145686,0.00434987,2583.1,2583.0,0.90315308]
[1646733146489,0.00434987,2583.1,2583.0,4.40315308]
[1646733147285,0.00434987,2583.1,2583.0,0.90315308]
[1646733147487,0.00434987,2583.1,2582.9,0.90716392]
[1646733148334,0.00868271,2583.1,2582.9,0.90716392]
[1646733149338,0.00434987,2583.1,2583.0,0.0228066]
[1646733149535,0.00868271,2583.1,2583.0,0.0228066]
[1646733150537,0.00434987,2583.1,2583.0,1.169]
[1646733151236,0.00434987,2583.1,2582.4,1.93649]
[1646733152080,0.00868229,2583.1,2582.4,1.93649]
[1646733152785,1.13146207,2582.9,2582.4,1.93649]
[1646733152983,1.19381739,2582.8,2582.4,1.93649]
[1646733153183,0.26226863,2582.7,2582.4,1.93649]
[1646733153384,0.25568037,2582.6,2582.4,1.93649]
[1646733153584,0.96827,2582.8,2582.4,1.93649]
[1646733154386,0.96827,2582.8,2582.5,0.96823]
[1646733154985,0.96827,2582.8,2582.6,0.46767381]
[1646733155444,0.96827,2582.8,2582.4,1.93649]
[1646733155445,0.96827,2582.8,2582.3,0.96843]
[1646733157037,0.96827,2582.8,2582.1,2.823271]
[1646733159039,0.96827,2582.8,2582.1,1.93679]
[1646733160385,0.96827,2582.8,2582.1,2.85300554]
[1646733160887,0.96827,2582.8,2582.2,0.96835]
[1646733161089,0.96827,2582.8,2582.2,4.46835]
[1646733161890,0.96827,2582.8,2582.3,0.9683]
[1646733162089,0.96827,2582.8,2582.5,0.92220936]
[1646733163133,0.96827,2582.8,2582.5,1.89048936]
[1646733163734,0.23234653,2582.7,2582.5,1.89048936]
[1646733163934,0.23234653,2582.7,2582.6,3.5]
[1646733164233,1.93654,2583.0,2582.9,0.4856171]
[1646733164436,0.00433225,2583.1,2582.9,3.9856171]
[1646733164636,0.00433225,2583.1,2583.0,3.5]
[1646733164937,5.46731,2583.9,2583.0,3.5]
[1646733165134,0.96806,2583.1,2583.0,4.57529765]
[1646733165333,0.00433284,2583.1,2582.9,2.4215371]
[1646733165533,0.00433284,2583.1,2582.9,0.4856171]
[1646733166234,1.93591,2583.3,2582.9,0.4856171]
[1646733166435,3.88839478,2583.1,2582.9,0.4856171]
[1646733167081,3.88839478,2583.1,2582.2,0.2159]
[1646733167281,3.88839478,2583.1,2582.3,1.58103189]
[1646733167682,1.13355453,2582.5,2582.4,0.96836]
[1646733167884,1.13355453,2582.5,2582.3,1.58103189]
[1646733167885,1.13355453,2582.5,2582.2,0.2159]
[1646733168487,1.13355453,2582.5,2581.6,3.5]
[1646733168686,1.13355453,2582.5,2581.7,1.58112865]
[1646733168887,0.9684,2582.3,2581.8,4.48803079]
[1646733169088,0.9684,2582.3,2581.9,2.28324588]
[1646733169290,0.9684,2582.3,2582.0,4.20211723]
[1646733169490,0.9684,2582.3,2582.2,0.59075145]
[1646733169691,1.9368,2582.4,2582.2,5.6718801]
[1646733169889,1.9368,2582.4,2582.3,2.1718801]
[1646733172137,1.9368,2582.4,2582.3,3.5]